[Event "*** SCC Grand Prix: Titled Tuesday Blitz"]
[Site "Chess.com"]
[Date "2020.07.21"]
[Round "8"]
[White "j2806"]
[Black "andy_rekt"]
[Result "0-1"]
[WhiteElo "2052"]
[BlackElo "2229"]
[TimeControl "180+1"]
[EndTime "11:33:51 PDT"]
[Termination "andy_rekt won by resignation"]

1. e4 {[%clk 0:03:00.9]} 1... e6 {[%clk 0:03:00]} 2. d4 {[%clk 0:03:00.6]} 2...
d5 {[%clk 0:03:00.3]} 3. exd5 {[%clk 0:02:59.9]} 3... exd5 {[%clk 0:03:00.3]} 4.
Bd3 {[%clk 0:02:59.9]} 4... Nc6 {[%clk 0:02:58.2]} 5. c3 {[%clk 0:02:59.1]} 5...
Bd6 {[%clk 0:02:57.4]} 6. h3 {[%clk 0:02:57.7]} 6... Nge7 {[%clk 0:02:57]} 7.
Nf3 {[%clk 0:02:57.5]} 7... Bf5 {[%clk 0:02:56.6]} 8. O-O {[%clk 0:02:56.6]}
8... Qd7 {[%clk 0:02:56]} 9. Re1 {[%clk 0:02:56.4]} 9... Bxd3 {[%clk 0:02:53.3]}
10. Qxd3 {[%clk 0:02:55.2]} 10... O-O {[%clk 0:02:53.9]} 11. Ne5 {[%clk
0:02:53]} 11... Bxe5 {[%clk 0:02:51.7]} 12. dxe5 {[%clk 0:02:49.1]} 12... Qe6
{[%clk 0:02:50.1]} 13. Bf4 {[%clk 0:02:46.6]} 13... Rad8 {[%clk 0:02:48.7]} 14.
Nd2 {[%clk 0:02:43.8]} 14... d4 {[%clk 0:02:46]} 15. Qf3 {[%clk 0:02:26.5]}
15... Nd5 {[%clk 0:02:34]} 16. Ne4 {[%clk 0:01:44.9]} 16... dxc3 {[%clk
0:02:27]} 17. Nxc3 {[%clk 0:01:39.1]} 17... Nd4 {[%clk 0:02:26.3]} 18. Qe4
{[%clk 0:01:16.2]} 18... Nxf4 {[%clk 0:02:23.7]} 19. Qxf4 {[%clk 0:01:12.8]}
19... Nc2 {[%clk 0:02:24.2]} 20. Ne4 {[%clk 0:01:06.2]} 20... Nxa1 {[%clk
0:02:14.2]} 21. Rxa1 {[%clk 0:01:05.3]} 21... Qb6 {[%clk 0:02:04.4]} 22. b3
{[%clk 0:01:00]} 22... Rd4 {[%clk 0:02:03.1]} 23. Qf3 {[%clk 0:00:57.2]} 23...
Qc6 {[%clk 0:01:56.5]} 24. Re1 {[%clk 0:00:43.1]} 24... Rfd8 {[%clk 0:01:54]}
25. Qg4 {[%clk 0:00:26.3]} 25... Qg6 {[%clk 0:01:50.6]} 26. Qf3 {[%clk 0:00:20]}
26... Re8 {[%clk 0:01:40.3]} 27. Nc5 {[%clk 0:00:13.4]} 27... b6 {[%clk
0:01:36]} 28. Ne4 {[%clk 0:00:09.2]} 0-1

[Event "*** SCC Grand Prix: Titled Tuesday Blitz"]
[Site "Chess.com"]
[Date "2020.07.21"]
[Round "8"]
[White "KingCrusher275"]
[Black "ExcitingTrap"]
[Result "1-0"]
[WhiteElo "2396"]
[BlackElo "2220"]
[TimeControl "180+1"]
[EndTime "11:33:52 PDT"]
[Termination "KingCrusher275 won on time"]

1. d4 {[%clk 0:03:00.9]} 1... Nf6 {[%clk 0:02:58.3]} 2. c4 {[%clk 0:03:00]} 2...
g6 {[%clk 0:02:55.5]} 3. Nc3 {[%clk 0:02:59.9]} 3... Bg7 {[%clk 0:02:55.5]} 4.
e4 {[%clk 0:03:00.4]} 4... d6 {[%clk 0:02:55.9]} 5. h3 {[%clk 0:03:00]} 5... e5
{[%clk 0:02:53.3]} 6. d5 {[%clk 0:02:59.6]} 6... O-O {[%clk 0:02:51.6]} 7. Nf3
{[%clk 0:02:57]} 7... c5 {[%clk 0:02:46.5]} 8. Be2 {[%clk 0:02:51.8]} 8... Nh5
{[%clk 0:02:39.4]} 9. g3 {[%clk 0:02:47.9]} 9... f5 {[%clk 0:02:27.2]} 10. exf5
{[%clk 0:02:47.5]} 10... gxf5 {[%clk 0:02:21.3]} 11. Nxe5 {[%clk 0:02:36.6]}
11... Nxg3 {[%clk 0:02:19.9]} 12. fxg3 {[%clk 0:02:06]} 12... Bxe5 {[%clk
0:02:17.7]} 13. Bh6 {[%clk 0:02:05.9]} 13... Bxg3+ {[%clk 0:01:49.9]} 14. Kd2
{[%clk 0:02:05.6]} 14... Re8 {[%clk 0:01:27.1]} 15. Rg1 {[%clk 0:02:00.3]} 15...
Qh4 {[%clk 0:01:26.4]} 16. Bh5 {[%clk 0:01:52.4]} 16... Na6 {[%clk 0:00:37.4]}
17. Qf3 {[%clk 0:01:47.1]} 17... Qd4+ {[%clk 0:00:29.3]} 18. Kc2 {[%clk
0:01:42]} 18... Nb4+ {[%clk 0:00:26.8]} 19. Kb3 {[%clk 0:01:42.1]} 19... f4
{[%clk 0:00:09.9]} 20. Bxf4 {[%clk 0:01:39.5]} 20... a5 {[%clk 0:00:07.8]} 21.
Bxe8 {[%clk 0:01:34.2]} 21... Bf5 {[%clk 0:00:03.6]} 22. Qxg3+ {[%clk
0:01:30.6]} 1-0

[Event "*** SCC Grand Prix: Titled Tuesday Blitz"]
[Site "Chess.com"]
[Date "2020.07.21"]
[Round "8"]
[White "warmoatmeal"]
[Black "26andrej26"]
[Result "0-1"]
[WhiteElo "2354"]
[BlackElo "2526"]
[TimeControl "180+1"]
[EndTime "11:33:57 PDT"]
[Termination "26andrej26 won by resignation"]

1. Nf3 {[%clk 0:03:00.5]} 1... Nf6 {[%clk 0:02:59.9]} 2. d4 {[%clk 0:03:00.3]}
2... g6 {[%clk 0:03:00.2]} 3. c4 {[%clk 0:03:00.2]} 3... Bg7 {[%clk 0:03:01.1]}
4. Nc3 {[%clk 0:03:01]} 4... d6 {[%clk 0:03:01.6]} 5. Bg5 {[%clk 0:03:01.5]}
5... O-O {[%clk 0:03:02.5]} 6. e3 {[%clk 0:03:01.8]} 6... c5 {[%clk 0:03:00.8]}
7. Be2 {[%clk 0:03:01.9]} 7... h6 {[%clk 0:02:45.6]} 8. Bh4 {[%clk 0:02:56.5]}
8... Nbd7 {[%clk 0:02:40.8]} 9. O-O {[%clk 0:02:53.8]} 9... Qb6 {[%clk
0:02:40.9]} 10. Qb3 {[%clk 0:02:52.4]} 10... Qb4 {[%clk 0:02:22.7]} 11. Qxb4
{[%clk 0:02:29.1]} 11... cxb4 {[%clk 0:02:22]} 12. Nd5 {[%clk 0:02:29.6]} 12...
Nxd5 {[%clk 0:02:20.9]} 13. cxd5 {[%clk 0:02:30.5]} 13... g5 {[%clk 0:02:14.8]}
14. Bg3 {[%clk 0:02:29.8]} 14... Nb6 {[%clk 0:02:15.1]} 15. Rac1 {[%clk
0:02:11.6]} 15... Nxd5 {[%clk 0:02:12.4]} 16. Bc4 {[%clk 0:02:11.7]} 16... Nb6
{[%clk 0:01:57.5]} 17. Bb3 {[%clk 0:02:11.7]} 17... a5 {[%clk 0:01:41]} 18. a3
{[%clk 0:01:53.4]} 18... a4 {[%clk 0:01:40.9]} 19. Ba2 {[%clk 0:01:49.6]} 19...
b3 {[%clk 0:01:18.9]} 20. Bb1 {[%clk 0:01:48.2]} 20... Bd7 {[%clk 0:01:09]} 21.
Rc7 {[%clk 0:01:46.3]} 21... Bb5 {[%clk 0:00:54.4]} 22. Rfc1 {[%clk 0:01:44.1]}
22... Nd5 {[%clk 0:00:37.2]} 23. Rxb7 {[%clk 0:01:40.8]} 23... Rfc8 {[%clk
0:00:37.3]} 24. Re1 {[%clk 0:01:22.4]} 24... Bc6 {[%clk 0:00:35.6]} 25. e4
{[%clk 0:00:59.1]} 25... Bxb7 {[%clk 0:00:35.5]} 26. e5 {[%clk 0:00:59.2]} 0-1

[Event "*** SCC Grand Prix: Titled Tuesday Blitz"]
[Site "Chess.com"]
[Date "2020.07.21"]
[Round "8"]
[White "talaicito"]
[Black "Quiet_Desperation"]
[Result "0-1"]
[WhiteElo "2068"]
[BlackElo "2238"]
[TimeControl "180+1"]
[EndTime "11:33:58 PDT"]
[Termination "Quiet_Desperation won by resignation"]

1. d4 {[%clk 0:03:00.9]} 1... d5 {[%clk 0:02:59.4]} 2. Nc3 {[%clk 0:03:00.4]}
2... e6 {[%clk 0:02:59.2]} 3. Bf4 {[%clk 0:03:00.8]} 3... Nf6 {[%clk 0:02:58.9]}
4. e3 {[%clk 0:03:01.2]} 4... Be7 {[%clk 0:02:58.7]} 5. Nf3 {[%clk 0:03:00.4]}
5... O-O {[%clk 0:02:58.7]} 6. Bd3 {[%clk 0:02:59.6]} 6... a6 {[%clk 0:02:58.9]}
7. O-O {[%clk 0:02:59.1]} 7... c5 {[%clk 0:02:59.5]} 8. dxc5 {[%clk 0:02:58.3]}
8... Nc6 {[%clk 0:03:00.4]} 9. e4 {[%clk 0:02:57.1]} 9... Bxc5 {[%clk
0:02:59.7]} 10. exd5 {[%clk 0:02:54.5]} 10... exd5 {[%clk 0:02:59]} 11. h3
{[%clk 0:02:35.6]} 11... Re8 {[%clk 0:02:56.9]} 12. Re1 {[%clk 0:02:31]} 12...
Be6 {[%clk 0:02:56.4]} 13. Bg5 {[%clk 0:02:21.8]} 13... h6 {[%clk 0:02:54.9]}
14. Bh4 {[%clk 0:02:20]} 14... b5 {[%clk 0:02:53.3]} 15. a3 {[%clk 0:02:18.3]}
15... Rc8 {[%clk 0:02:52.1]} 16. Ne2 {[%clk 0:02:16.2]} 16... Be7 {[%clk
0:02:50.3]} 17. c3 {[%clk 0:02:13.2]} 17... Na5 {[%clk 0:02:46.7]} 18. Ned4
{[%clk 0:02:10.6]} 18... Nc4 {[%clk 0:02:45.5]} 19. Bxc4 {[%clk 0:01:52.4]}
19... dxc4 {[%clk 0:02:45.3]} 20. Nxe6 {[%clk 0:01:52.4]} 20... Qxd1 {[%clk
0:02:44.7]} 21. Raxd1 {[%clk 0:01:51.3]} 21... fxe6 {[%clk 0:02:44]} 22. Rxe6
{[%clk 0:01:51]} 22... Kf7 {[%clk 0:02:39.4]} 23. Rde1 {[%clk 0:01:45.4]} 23...
Bc5 {[%clk 0:02:37.7]} 24. Rxe8 {[%clk 0:01:40.5]} 24... Rxe8 {[%clk 0:02:38.6]}
25. Rxe8 {[%clk 0:01:39]} 25... Nxe8 {[%clk 0:02:37.7]} 26. Kf1 {[%clk
0:01:27.9]} 26... g5 {[%clk 0:02:36.5]} 27. Bg3 {[%clk 0:01:26.8]} 27... Nf6
{[%clk 0:02:36.5]} 28. Ne5+ {[%clk 0:01:25.7]} 28... Ke6 {[%clk 0:02:36.2]} 29.
f3 {[%clk 0:01:24.3]} 29... Bd6 {[%clk 0:02:33.6]} 30. Ng4 {[%clk 0:01:14.6]}
30... Bxg3 {[%clk 0:02:30.1]} 31. Nxh6 {[%clk 0:01:14.7]} 31... Nd5 {[%clk
0:02:28.7]} 32. Ng4 {[%clk 0:01:09]} 32... Kf5 {[%clk 0:02:26.9]} 33. Ke2 {[%clk
0:01:06.1]} 33... Nf4+ {[%clk 0:02:26.1]} 34. Kf1 {[%clk 0:01:05.9]} 34... Nd3
{[%clk 0:02:25.8]} 35. Ne3+ {[%clk 0:01:02.5]} 35... Ke5 {[%clk 0:02:24]} 36.
Nd1 {[%clk 0:01:03.4]} 36... Bf4 {[%clk 0:02:21.7]} 37. Ke2 {[%clk 0:00:56.6]}
37... Bc1 {[%clk 0:02:17.2]} 38. b3 {[%clk 0:00:54.5]} 38... Bxa3 {[%clk
0:02:14.2]} 39. bxc4 {[%clk 0:00:53.8]} 39... bxc4 {[%clk 0:02:14.6]} 40. g3
{[%clk 0:00:53.9]} 40... Bc5 {[%clk 0:02:14.3]} 41. h4 {[%clk 0:00:47.8]} 41...
gxh4 {[%clk 0:02:13.9]} 42. gxh4 {[%clk 0:00:47.8]} 42... a5 {[%clk 0:02:13.7]}
43. Kd2 {[%clk 0:00:31.6]} 43... a4 {[%clk 0:02:13.6]} 44. Kc2 {[%clk
0:00:31.6]} 44... a3 {[%clk 0:02:13.4]} 45. Kb1 {[%clk 0:00:31.6]} 45... Kf4
{[%clk 0:02:11.6]} 46. h5 {[%clk 0:00:29.5]} 46... Kxf3 {[%clk 0:02:10]} 47. h6
{[%clk 0:00:28.9]} 47... Bf8 {[%clk 0:02:10]} 48. h7 {[%clk 0:00:28.4]} 48...
Bg7 {[%clk 0:02:09.5]} 49. Ka2 {[%clk 0:00:28.5]} 49... Ke2 {[%clk 0:02:08.3]}
50. Kxa3 {[%clk 0:00:26.6]} 50... Kxd1 {[%clk 0:02:06.2]} 51. Ka4 {[%clk
0:00:27.2]} 51... Kc2 {[%clk 0:02:05.1]} 52. Kb5 {[%clk 0:00:27.6]} 52... Kxc3
{[%clk 0:02:04.6]} 0-1

[Event "*** SCC Grand Prix: Titled Tuesday Blitz"]
[Site "Chess.com"]
[Date "2020.07.21"]
[Round "8"]
[White "PavelShkapenko"]
[Black "nrvignesh"]
[Result "1-0"]
[WhiteElo "2648"]
[BlackElo "2764"]
[TimeControl "180+1"]
[EndTime "11:33:59 PDT"]
[Termination "PavelShkapenko won by resignation"]

1. e4 {[%clk 0:03:00.9]} 1... c5 {[%clk 0:02:59.5]} 2. c3 {[%clk 0:03:01.1]}
2... d5 {[%clk 0:02:55.7]} 3. exd5 {[%clk 0:03:01]} 3... Qxd5 {[%clk 0:02:56.6]}
4. Nf3 {[%clk 0:02:59.2]} 4... Nf6 {[%clk 0:02:56.2]} 5. d4 {[%clk 0:02:58.9]}
5... cxd4 {[%clk 0:02:54.8]} 6. cxd4 {[%clk 0:02:58.1]} 6... Bg4 {[%clk
0:02:54.1]} 7. Nc3 {[%clk 0:02:45.9]} 7... Qd6 {[%clk 0:02:35.1]} 8. Qb3 {[%clk
0:02:03.7]} 8... Nc6 {[%clk 0:02:16.4]} 9. d5 {[%clk 0:01:57.2]} 9... Nd8 {[%clk
0:01:56.9]} 10. Bb5+ {[%clk 0:01:52.1]} 10... Bd7 {[%clk 0:01:55.5]} 11. Bg5
{[%clk 0:01:40.8]} 11... g6 {[%clk 0:01:39.9]} 12. Bxf6 {[%clk 0:01:32.1]} 12...
exf6 {[%clk 0:01:38.4]} 13. O-O {[%clk 0:01:29.7]} 13... Bg7 {[%clk 0:01:16.4]}
14. Rfe1+ {[%clk 0:01:27.9]} 14... Kf8 {[%clk 0:01:13.2]} 15. Bxd7 {[%clk
0:01:12.2]} 15... Qxd7 {[%clk 0:01:11.4]} 16. Qa3+ {[%clk 0:01:12.6]} 16... Kg8
{[%clk 0:01:10]} 17. Re7 {[%clk 0:01:12.5]} 17... Bf8 {[%clk 0:00:54.6]} 18.
Rxd7 {[%clk 0:01:11.2]} 18... Bxa3 {[%clk 0:00:53.9]} 19. bxa3 {[%clk
0:01:11.7]} 19... Rc8 {[%clk 0:00:53.5]} 20. Ne4 {[%clk 0:01:11]} 20... Kg7
{[%clk 0:00:50.8]} 21. Nd6 {[%clk 0:00:55.9]} 21... Rc2 {[%clk 0:00:47.6]} 22.
Re1 {[%clk 0:00:55.5]} 22... Rxa2 {[%clk 0:00:43.8]} 23. Ne8+ {[%clk 0:00:52.5]}
1-0

[Event "*** SCC Grand Prix: Titled Tuesday Blitz"]
[Site "Chess.com"]
[Date "2020.07.21"]
[Round "8"]
[White "Th3_Hound"]
[Black "giantslayer83"]
[Result "0-1"]
[WhiteElo "2594"]
[BlackElo "2745"]
[TimeControl "180+1"]
[EndTime "11:33:59 PDT"]
[Termination "giantslayer83 won by resignation"]

1. e4 {[%clk 0:03:00.9]} 1... c6 {[%clk 0:02:59.8]} 2. d4 {[%clk 0:03:00.1]}
2... d5 {[%clk 0:03:00.7]} 3. e5 {[%clk 0:03:00.4]} 3... Bf5 {[%clk 0:03:00.5]}
4. Nf3 {[%clk 0:03:00.9]} 4... e6 {[%clk 0:03:00.4]} 5. Be2 {[%clk 0:03:01.4]}
5... c5 {[%clk 0:02:57.3]} 6. Be3 {[%clk 0:02:59.5]} 6... Nd7 {[%clk 0:02:56.2]}
7. c3 {[%clk 0:02:54.7]} 7... Ne7 {[%clk 0:02:55.5]} 8. O-O {[%clk 0:02:53.4]}
8... Nc6 {[%clk 0:02:55.5]} 9. Nbd2 {[%clk 0:02:52]} 9... h6 {[%clk 0:02:49.7]}
10. Re1 {[%clk 0:02:49.1]} 10... Qb6 {[%clk 0:02:46.5]} 11. Qb3 {[%clk 0:02:30]}
11... c4 {[%clk 0:02:44.8]} 12. Qxb6 {[%clk 0:02:28.4]} 12... axb6 {[%clk
0:02:42]} 13. h3 {[%clk 0:02:26.9]} 13... b5 {[%clk 0:02:42]} 14. a3 {[%clk
0:02:26.6]} 14... Nb6 {[%clk 0:02:42]} 15. g4 {[%clk 0:02:23.9]} 15... Bh7
{[%clk 0:02:41.6]} 16. Nf1 {[%clk 0:02:04.7]} 16... Na4 {[%clk 0:02:35]} 17. Bc1
{[%clk 0:02:03.3]} 17... Be7 {[%clk 0:02:29.2]} 18. Bd1 {[%clk 0:02:03.1]} 18...
Kd7 {[%clk 0:02:26.3]} 19. Ne3 {[%clk 0:02:02.4]} 19... Nb6 {[%clk 0:02:24]} 20.
Bc2 {[%clk 0:01:54.3]} 20... b4 {[%clk 0:02:21.7]} 21. Bxh7 {[%clk 0:01:51.6]}
21... Rxh7 {[%clk 0:02:22.6]} 22. cxb4 {[%clk 0:01:49.5]} 22... Nxb4 {[%clk
0:02:22.4]} 23. Rd1 {[%clk 0:01:46.3]} 23... Nc6 {[%clk 0:02:19]} 24. Rb1 {[%clk
0:01:45.1]} 24... Na4 {[%clk 0:02:18.2]} 25. Bd2 {[%clk 0:01:44.3]} 25... Kc7
{[%clk 0:02:07.3]} 26. b3 {[%clk 0:01:43.5]} 26... cxb3 {[%clk 0:02:02.8]} 27.
Rxb3 {[%clk 0:01:44.4]} 27... Rhh8 {[%clk 0:02:02.8]} 28. Rdb1 {[%clk 0:01:44]}
28... Ra7 {[%clk 0:02:02.8]} 29. Kf1 {[%clk 0:01:39]} 29... Rb8 {[%clk
0:02:00.6]} 30. Ke2 {[%clk 0:01:37.1]} 30... Ra6 {[%clk 0:02:00.9]} 31. Kd3
{[%clk 0:01:30.5]} 31... Nb6 {[%clk 0:01:57.5]} 32. Nc2 {[%clk 0:01:25.8]} 32...
Nc4 {[%clk 0:01:56.7]} 33. Bb4 {[%clk 0:01:25.6]} 33... Bxb4 {[%clk 0:01:49.2]}
34. axb4 {[%clk 0:01:18.9]} 34... b5 {[%clk 0:01:48.7]} 35. Kc3 {[%clk
0:01:12.6]} 35... Rba8 {[%clk 0:01:48.1]} 36. Nfe1 {[%clk 0:01:13.2]} 36... f6
{[%clk 0:01:44.7]} 37. exf6 {[%clk 0:01:12.2]} 37... gxf6 {[%clk 0:01:44.7]} 38.
Nd3 {[%clk 0:01:13.1]} 38... Kd6 {[%clk 0:01:41.4]} 39. Re1 {[%clk 0:01:12.3]}
39... e5 {[%clk 0:01:39.9]} 40. f3 {[%clk 0:01:04.4]} 40... Ra2 {[%clk 0:01:39]}
41. dxe5+ {[%clk 0:01:01.4]} 41... fxe5 {[%clk 0:01:38.7]} 42. Nc5 {[%clk
0:00:57.8]} 42... Rxc2+ {[%clk 0:01:38]} 43. Kxc2 {[%clk 0:00:57.9]} 43... Nd4+
{[%clk 0:01:38.5]} 44. Kc3 {[%clk 0:00:55.8]} 44... Nxb3 {[%clk 0:01:38.4]} 45.
Kxb3 {[%clk 0:00:54.8]} 45... Ra3+ {[%clk 0:01:37.5]} 46. Kc2 {[%clk 0:00:54.7]}
46... Rxf3 {[%clk 0:01:37.5]} 0-1

[Event "*** SCC Grand Prix: Titled Tuesday Blitz"]
[Site "Chess.com"]
[Date "2020.07.21"]
[Round "8"]
[White "margarita_2703"]
[Black "Matols"]
[Result "1-0"]
[WhiteElo "2394"]
[BlackElo "2212"]
[TimeControl "180+1"]
[EndTime "11:34:00 PDT"]
[Termination "margarita_2703 won by resignation"]

1. Nf3 {[%clk 0:03:00.9]} 1... Nf6 {[%clk 0:02:59]} 2. c4 {[%clk 0:02:58.3]}
2... e6 {[%clk 0:02:59]} 3. Nc3 {[%clk 0:02:57.3]} 3... b6 {[%clk 0:02:58]} 4.
g3 {[%clk 0:02:53.5]} 4... Bb7 {[%clk 0:02:56]} 5. Bg2 {[%clk 0:02:53.4]} 5...
Bb4 {[%clk 0:02:50.9]} 6. Qc2 {[%clk 0:02:44.1]} 6... O-O {[%clk 0:02:49]} 7.
O-O {[%clk 0:02:43.5]} 7... d5 {[%clk 0:02:36.6]} 8. cxd5 {[%clk 0:02:36.2]}
8... exd5 {[%clk 0:02:31.1]} 9. d4 {[%clk 0:02:36.1]} 9... Nbd7 {[%clk 0:02:29]}
10. a3 {[%clk 0:02:27.4]} 10... Be7 {[%clk 0:02:25.9]} 11. Bf4 {[%clk
0:02:22.9]} 11... c5 {[%clk 0:02:13.3]} 12. Rad1 {[%clk 0:02:17.4]} 12... Re8
{[%clk 0:02:08.1]} 13. e3 {[%clk 0:02:12.8]} 13... Rc8 {[%clk 0:02:06.7]} 14.
Qb1 {[%clk 0:02:07.2]} 14... h6 {[%clk 0:01:57.5]} 15. Ne5 {[%clk 0:02:03.2]}
15... g5 {[%clk 0:01:52.6]} 16. Nxd7 {[%clk 0:01:59.2]} 16... Nxd7 {[%clk
0:01:51.9]} 17. Be5 {[%clk 0:01:56.1]} 17... Bf8 {[%clk 0:01:32.7]} 18. Qf5
{[%clk 0:01:52.3]} 18... f6 {[%clk 0:01:21.8]} 19. Nxd5 {[%clk 0:01:40.6]} 19...
Bxd5 {[%clk 0:01:03.8]} 20. Bxd5+ {[%clk 0:01:38]} 20... Kg7 {[%clk 0:01:03.8]}
21. Be4 {[%clk 0:01:32.2]} 21... Kf7 {[%clk 0:00:40.6]} 22. dxc5 {[%clk
0:01:21.7]} 22... Rxe5 {[%clk 0:00:17.8]} 23. Rxd7+ {[%clk 0:01:11.6]} 1-0

[Event "*** SCC Grand Prix: Titled Tuesday Blitz"]
[Site "Chess.com"]
[Date "2020.07.21"]
[Round "8"]
[White "HElissalt"]
[Black "canary2016"]
[Result "1-0"]
[WhiteElo "2277"]
[BlackElo "1928"]
[TimeControl "180+1"]
[EndTime "11:34:01 PDT"]
[Termination "HElissalt won by checkmate"]

1. c4 {[%clk 0:03:00.9]} 1... c6 {[%clk 0:02:59.7]} 2. d4 {[%clk 0:03:00.1]}
2... d5 {[%clk 0:02:59.9]} 3. cxd5 {[%clk 0:03:00.3]} 3... cxd5 {[%clk
0:02:59.6]} 4. Bf4 {[%clk 0:03:00.9]} 4... Nf6 {[%clk 0:02:57.7]} 5. e3 {[%clk
0:03:01.4]} 5... Nc6 {[%clk 0:02:57.8]} 6. Bd3 {[%clk 0:03:01.4]} 6... Bg4
{[%clk 0:02:54.5]} 7. f3 {[%clk 0:03:01.5]} 7... Bh5 {[%clk 0:02:54.4]} 8. Ne2
{[%clk 0:03:01.6]} 8... Bg6 {[%clk 0:02:54.6]} 9. Nbc3 {[%clk 0:02:56.9]} 9...
e6 {[%clk 0:02:54.2]} 10. Rc1 {[%clk 0:02:50.3]} 10... Bd6 {[%clk 0:02:53.2]}
11. Bxd6 {[%clk 0:02:49.2]} 11... Qxd6 {[%clk 0:02:52.8]} 12. O-O {[%clk
0:02:39.3]} 12... Bxd3 {[%clk 0:02:51.9]} 13. Qxd3 {[%clk 0:02:38.7]} 13... O-O
{[%clk 0:02:51.7]} 14. e4 {[%clk 0:02:38.5]} 14... dxe4 {[%clk 0:02:47.5]} 15.
fxe4 {[%clk 0:02:37.7]} 15... Qd7 {[%clk 0:02:47.4]} 16. Rcd1 {[%clk 0:02:29.3]}
16... Rad8 {[%clk 0:02:46]} 17. Qg3 {[%clk 0:02:03.6]} 17... Qe7 {[%clk
0:02:43.1]} 18. e5 {[%clk 0:02:00]} 18... Nd5 {[%clk 0:02:41.2]} 19. Ne4 {[%clk
0:01:59.8]} 19... Kh8 {[%clk 0:02:35.9]} 20. a3 {[%clk 0:01:52.5]} 20... f6
{[%clk 0:02:18.4]} 21. exf6 {[%clk 0:01:47.7]} 21... Nxf6 {[%clk 0:02:17.9]} 22.
Ng5 {[%clk 0:01:38.2]} 22... Qd6 {[%clk 0:02:11.2]} 23. Qh3 {[%clk 0:01:25.9]}
23... h6 {[%clk 0:01:54.3]} 24. Nxe6 {[%clk 0:01:22.3]} 24... Qe7 {[%clk
0:01:43.6]} 25. N2f4 {[%clk 0:01:16.3]} 25... Qe8 {[%clk 0:01:22]} 26. Nxf8
{[%clk 0:01:12.6]} 26... Qxf8 {[%clk 0:01:12.2]} 27. Ng6+ {[%clk 0:01:12.1]}
27... Kg8 {[%clk 0:01:11.4]} 28. Nxf8 {[%clk 0:01:12.1]} 28... Rxf8 {[%clk
0:01:11.5]} 29. d5 {[%clk 0:01:09.2]} 29... Ne5 {[%clk 0:01:09.1]} 30. Qe6+
{[%clk 0:01:08.9]} 30... Kh7 {[%clk 0:01:05.9]} 31. Qxe5 {[%clk 0:01:08.3]}
31... Rd8 {[%clk 0:01:04.9]} 32. Qf5+ {[%clk 0:01:08.2]} 32... Kh8 {[%clk
0:01:02.8]} 33. d6 {[%clk 0:01:07.8]} 33... Rd7 {[%clk 0:01:02]} 34. Qe6 {[%clk
0:01:07.2]} 34... Rd8 {[%clk 0:01:01.8]} 35. Rxf6 {[%clk 0:01:06.7]} 35... gxf6
{[%clk 0:01:01.3]} 36. Qxf6+ {[%clk 0:01:07.1]} 36... Kh7 {[%clk 0:01:01.6]} 37.
Qxd8 {[%clk 0:01:06.9]} 37... b5 {[%clk 0:01:00.9]} 38. Rf1 {[%clk 0:01:06.6]}
38... b4 {[%clk 0:01:00.4]} 39. Rf6 {[%clk 0:01:04.1]} 39... a5 {[%clk
0:00:58.7]} 40. Qe7+ {[%clk 0:01:04.6]} 40... Kg8 {[%clk 0:00:58.1]} 41. Rf8#
{[%clk 0:01:05.1]} 1-0

[Event "*** SCC Grand Prix: Titled Tuesday Blitz"]
[Site "Chess.com"]
[Date "2020.07.21"]
[Round "8"]
[White "knightmare7724"]
[Black "Harsha_Bharathakoti"]
[Result "0-1"]
[WhiteElo "2600"]
[BlackElo "2765"]
[TimeControl "180+1"]
[EndTime "11:34:03 PDT"]
[Termination "Harsha_Bharathakoti won by resignation"]

1. e4 {[%clk 0:03:00.9]} 1... c5 {[%clk 0:02:59.5]} 2. Nf3 {[%clk 0:03:01.4]}
2... Nc6 {[%clk 0:03:00]} 3. d4 {[%clk 0:03:02]} 3... cxd4 {[%clk 0:03:00.9]} 4.
Nxd4 {[%clk 0:03:02.9]} 4... Nf6 {[%clk 0:03:01.6]} 5. Nc3 {[%clk 0:03:03.2]}
5... d6 {[%clk 0:03:02.4]} 6. Be2 {[%clk 0:03:00.5]} 6... e5 {[%clk 0:03:02.3]}
7. Nb3 {[%clk 0:03:00.4]} 7... Be7 {[%clk 0:03:00.5]} 8. O-O {[%clk 0:03:00.7]}
8... O-O {[%clk 0:03:01.1]} 9. f4 {[%clk 0:02:59.5]} 9... a5 {[%clk 0:02:44.5]}
10. Bb5 {[%clk 0:02:39.4]} 10... Nxe4 {[%clk 0:02:34.6]} 11. Nd5 {[%clk
0:02:19.3]} 11... a4 {[%clk 0:02:26.5]} 12. Nd2 {[%clk 0:02:03.7]} 12... Nf6
{[%clk 0:02:26.9]} 13. Nxe7+ {[%clk 0:01:45.7]} 13... Nxe7 {[%clk 0:02:17.6]}
14. Bd3 {[%clk 0:01:39.5]} 14... Ng4 {[%clk 0:02:04.8]} 15. Qe2 {[%clk
0:01:29.7]} 15... Nd5 {[%clk 0:01:47.8]} 16. fxe5 {[%clk 0:01:20]} 16... dxe5
{[%clk 0:01:42.6]} 17. Nc4 {[%clk 0:01:10.3]} 17... b5 {[%clk 0:01:21.5]} 18.
Nxe5 {[%clk 0:00:41.5]} 18... Re8 {[%clk 0:01:21.2]} 19. Bxh7+ {[%clk
0:00:23.7]} 19... Kxh7 {[%clk 0:01:20.3]} 20. Qd3+ {[%clk 0:00:20.9]} 20... Kg8
{[%clk 0:01:18.3]} 21. Nxf7 {[%clk 0:00:16.9]} 21... Qb6+ {[%clk 0:01:18.2]} 22.
Kh1 {[%clk 0:00:17.1]} 22... Nf2+ {[%clk 0:01:14.9]} 23. Rxf2 {[%clk 0:00:17.5]}
23... Qxf2 {[%clk 0:01:15.8]} 24. Nh6+ {[%clk 0:00:15.1]} 24... gxh6 {[%clk
0:01:14.5]} 25. Qxd5+ {[%clk 0:00:15.8]} 25... Be6 {[%clk 0:01:14.4]} 0-1